bitfinex/quotes_ETHUSD_20241212
["timestamp","ask_amount","ask_price","bid_price","bid_amount"]
[1733978269228,0.55,3914.1,3913.8,1.53302]
[1733978271087,0.422,3913.8,3912.4,2.14842618]
[1733978271377,0.55,3913.7,3912.8,1.53342]
[1733978271581,0.6019903,3913.7,3912.8,1.53342]
[1733978272130,0.6019903,3913.7,3912.4,2.14842618]
[1733978272131,0.6019903,3913.7,3912.9,1.53338]
[1733978274044,0.422,3913.6,3912.9,1.53338]
[1733978274244,0.55,3913.4,3912.4,0.8165]
[1733978274441,0.05195919,3913.3,3912.7,1.53346]
[1733978274755,0.55,3913.2,3912.7,1.53346]
[1733978274968,0.60195141,3913.2,3912.7,1.53346]
[1733978275130,0.55,3913.4,3912.7,1.53346]
[1733978275577,0.55,3913.2,3912.5,1.92785672]
[1733978275883,0.55,3913.2,3912.6,1.53349]
[1733978276061,0.55,3913.4,3912.6,4.53349]
[1733978276376,0.55,3913.2,3912.7,1.53346]
[1733978276532,0.55,3913.2,3912.7,4.53346]
[1733978276729,0.55,3913.4,3912.6,0.87443167]
[1733978276927,0.55,3913.4,3912.5,3.0]
[1733978277196,0.55,3913.2,3912.4,0.8165]
[1733978277336,0.55,3913.2,3912.6,1.5335]
[1733978277535,0.05194363,3913.1,3912.6,1.5335]
[1733978277946,0.55,3913.4,3912.6,1.5335]
[1733978278154,0.55,3913.4,3912.4,0.8165]
[1733978278347,0.55,3913.2,3912.4,1.36418972]
[1733978278636,0.05194363,3913.1,3912.4,4.36418972]
[1733978278960,0.55,3913.2,3912.4,4.36418972]
[1733978279331,0.55,3913.0,3912.4,4.36418972]
[1733978279731,0.55,3913.4,3912.4,4.36418972]
[1733978280155,0.55,3913.2,3912.4,4.36418972]
[1733978280632,0.55,3913.0,3912.1,2.32759]
[1733978280835,0.55,3913.0,3912.2,1.53366]
[1733978281068,0.05155884,3912.9,3912.3,0.02555627]
[1733978281232,0.55,3913.0,3912.3,0.02555627]
[1733978281233,0.55,3913.0,3912.3,1.55917627]
[1733978281432,0.55,3913.0,3912.4,1.53358]
[1733978283162,0.55,3913.0,3912.3,0.4014518]
[1733978283369,0.55,3913.0,3912.6,1.5335]
[1733978284062,0.55,3913.0,3912.7,1.53345]
[1733978285685,0.422,3913.8,3912.8,0.02555513]
[1733978286012,0.05162107,3913.7,3913.0,1.53332]
[1733978286387,0.422,3913.8,3912.9,1.53337]
[1733978286600,0.422,3913.8,3912.4,4.14937126]
[1733978286823,0.422,3913.8,3912.6,3.0]
[1733978287019,0.422,3913.8,3913.1,1.53329]
[1733978287020,0.55,3913.7,3913.1,1.53329]
[1733978287235,0.60130217,3913.7,3913.1,1.53329]
[1733978287816,0.60130217,3913.7,3913.2,1.53326]
[1733978288120,0.55,3913.7,3913.2,1.53326]
[1733978289075,0.0512944,3913.6,3913.2,1.53326]
[1733978289322,0.55,3913.5,3912.4,1.14937126]
[1733978289523,0.55,3913.3,3912.4,1.53355]
[1733978289860,0.55,3913.1,3912.4,1.53355]
[1733978290155,0.55,3912.9,3912.4,1.53355]
[1733978290558,0.55,3912.9,3912.1,0.8093]
[1733978290559,0.05127692,3912.8,3912.5,1.53354]
[1733978290714,0.05127692,3912.8,3912.1,0.8093]
[1733978290715,0.55,3913.1,3912.6,1.5335]
[1733978291867,0.55,3912.9,3912.6,1.5335]
[1733978292382,0.55,3913.1,3912.6,1.5335]
[1733978292866,0.55,3912.9,3912.6,1.5335]
[1733978293373,0.55,3913.1,3912.6,1.5335]
[1733978293741,0.55,3912.9,3912.6,1.5335]
[1733978293994,0.55,3913.1,3912.6,1.5335]
[1733978294205,0.05127692,3912.8,3912.3,1.3326377]
[1733978294491,0.55,3913.1,3912.4,1.53357]
[1733978294833,0.55,3912.9,3912.4,4.53357]
[1733978295295,0.55,3913.1,3912.4,4.53357]
[1733978295573,0.55,3912.9,3912.4,4.53357]
[1733978295940,0.05127692,3912.8,3912.4,4.53357]
[1733978296350,0.55,3912.5,3912.1,1.53366]
[1733978296879,0.55,3912.5,3911.6,0.625]
[1733978296880,0.422,3912.4,3911.6,0.625]
[1733978297090,0.422,3912.2,3911.6,0.625]
[1733978297239,0.55,3911.9,3911.6,0.625]
[1733978297575,0.55,3911.7,3911.6,0.625]
[1733978298081,0.60032943,3911.7,3911.6,0.625]
[1733978298277,1.02232943,3911.7,3911.6,0.625]
[1733978299052,0.05032943,3911.7,3911.6,4.9576377]
[1733978299247,0.422,3912.0,3911.6,4.33665677]
[1733978299462,0.422,3912.9,3911.8,1.5338]
[1733978299663,0.422,3912.3,3911.8,1.5338]
[1733978299878,0.422,3912.3,3911.6,0.625]
[1733978300048,0.422,3912.3,3911.9,1.53376]
[1733978300248,3.41885436,3913.0,3912.2,1.53364]
[1733978300249,0.422,3913.0,3912.2,1.53364]
[1733978300797,0.04926976,3912.9,3912.3,1.5336]
[1733978301098,0.04926976,3912.9,3912.0,1.53371]
[1733978301278,0.422,3913.0,3912.1,1.53369]
[1733978301477,0.04926976,3912.9,3912.1,1.53369]
[1733978301653,0.55,3912.8,3912.2,1.53364]
[1733978301854,0.55,3912.8,3911.9,1.53375]
[1733978302093,0.422,3913.0,3911.9,2.14307151]
[1733978302094,0.0492542,3912.7,3911.9,2.14307151]
[1733978302259,0.55,3912.6,3911.9,2.14307151]
[1733978302455,0.55,3912.9,3911.9,0.60932151]
[1733978302655,0.04926198,3912.8,3912.2,1.53365]
[1733978302987,0.55,3912.7,3912.2,1.53365]
[1733978303190,0.55,3912.9,3912.2,1.53365]
[1733978303555,0.55,3912.7,3911.9,0.60932151]
[1733978303893,0.55,3912.7,3912.0,0.45437866]
[1733978304057,0.55,3912.9,3912.0,1.98810866]
[1733978304258,0.04926198,3912.8,3912.0,1.53373]
[1733978304576,0.55,3912.7,3912.0,1.53373]
[1733978304924,0.04924642,3912.6,3912.0,1.53373]
[1733978305091,0.55,3912.7,3911.7,0.93446512]
[1733978305297,0.55,3912.9,3912.1,1.53369]
[1733978305596,0.55,3912.7,3912.1,1.53369]
[1733978305797,0.55,3912.7,3912.1,1.687059]
[1733978306260,0.55,3912.9,3912.1,1.687059]
[1733978306594,0.55,3912.7,3912.2,1.53365]
[1733978307358,0.55,3912.9,3912.2,1.53365]
[1733978307560,0.04924642,3912.6,3912.2,1.53365]
[1733978307759,0.55,3912.9,3912.2,1.7023519]
[1733978307955,0.04923864,3912.5,3912.1,0.153369]
[1733978308181,0.55,3912.9,3912.1,0.153369]
[1733978308387,0.04923086,3912.4,3912.0,1.53373]
[1733978308560,0.55,3912.9,3912.0,1.53373]
[1733978308759,0.04922307,3912.3,3912.0,1.53373]
[1733978309092,0.55,3912.9,3912.0,1.53373]
[1733978309397,0.55,3912.7,3912.0,1.53373]
[1733978309567,0.55,3912.7,3912.0,2.08054951]
[1733978309769,0.55,3912.9,3912.0,2.08054951]
[1733978310405,0.55,3912.7,3912.0,2.08054951]
[1733978310559,0.55,3912.9,3912.0,1.53373]
[1733978310765,0.55,3912.5,3911.9,1.53377]
[1733978311074,0.04923086,3912.4,3911.9,1.53377]
[1733978311289,0.55,3912.7,3911.9,1.53377]
[1733978311484,0.55,3912.5,3911.9,1.53377]
[1733978311685,0.55,3912.3,3911.7,5.46830512]
[1733978311887,0.55,3912.3,3911.7,0.93446512]
[1733978312099,0.422,3912.2,3911.7,4.65901512]
[1733978312301,0.422,3912.2,3911.7,1.65901512]
[1733978313115,0.422,3912.2,3911.7,1.53385]
[1733978314075,0.422,3912.2,3911.6,3.625]
[1733978314317,0.422,3912.2,3911.8,1.5338]
[1733978314513,0.422,3912.5,3912.0,1.53371]
[1733978315013,0.422,3912.5,3912.1,1.5337]
[1733978316714,0.422,3912.5,3911.7,0.54266524]
[1733978316913,0.422,3912.5,3911.9,3.0]
[1733978317105,0.422,3913.2,3912.3,1.53359]
[1733978317304,0.59949246,3913.1,3912.3,1.53359]
[1733978318790,0.59949246,3913.1,3912.0,0.77865807]
[1733978319003,0.55,3913.1,3912.7,1.53346]
[1733978319194,0.55,3912.9,3912.7,1.53346]
[1733978319513,0.04946912,3912.8,3912.7,1.53346]
[1733978319689,0.55,3913.1,3912.7,1.53346]
[1733978319928,0.55,3912.9,3912.7,1.53346]
[1733978320290,0.04946912,3912.8,3912.7,1.53346]
[1733978320488,0.55,3913.1,3912.3,3.0]
[1733978320819,0.04948468,3913.0,3912.5,1.53353]
[1733978321319,0.04948468,3913.0,3912.0,0.7531]
[1733978321320,0.422,3912.8,3911.7,3.68330931]
[1733978321518,0.55,3912.5,3911.7,1.54856378]
[1733978321920,0.55,3912.3,3911.7,1.54856378]
[1733978322085,0.55,3912.3,3911.9,1.53377]
[1733978322286,0.04984791,3912.2,3911.7,0.01474378]
[1733978322593,3.41885436,3912.9,3912.0,0.7531]
[1733978322796,0.422,3913.0,3912.4,3.0]
[1733978323000,0.422,3913.0,3912.6,1.53349]
[1733978323207,0.422,3913.0,3912.4,3.0]
[1733978323407,0.422,3913.3,3912.4,3.0]
[1733978323609,0.422,3913.3,3912.7,1.53343]
[1733978323987,0.55,3913.2,3912.7,1.53343]
[1733978324388,2.97045165,3913.8,3912.7,1.53343]
[1733978324588,2.21011225,3913.7,3912.7,1.53343]
[1733978324803,2.97045165,3913.8,3912.7,1.53343]
[1733978325003,2.21014335,3913.7,3912.7,1.53343]
[1733978325205,1.32608601,3913.7,3912.7,1.53343]
[1733978325421,1.56122122,3913.7,3912.7,1.53343]
[1733978325727,1.32608601,3913.7,3912.7,1.53343]
[1733978326092,1.56123,3913.7,3912.1,4.81223667]
[1733978326288,0.88411093,3913.6,3912.5,1.78913]
[1733978326612,0.55,3913.6,3912.6,1.78908]
[1733978326931,0.55,3913.6,3912.7,1.78902]
[1733978327132,2.53045165,3913.9,3912.4,2.13474553]
[1733978327330,2.83209998,3914.7,3912.4,2.13474553]
[1733978327331,4.13085546,3914.7,3913.2,3.7531]
[1733978327493,2.53045165,3914.7,3914.0,1.78842]
[1733978327700,2.53045165,3914.7,3914.1,1.78838]
[1733978328031,2.53045165,3915.4,3914.0,3.0]
[1733978328234,1.60040381,3915.7,3914.5,1.78822]
[1733978328235,2.90696493,3915.7,3914.5,1.78822]
[1733978328392,2.44290838,3915.6,3914.5,1.78822]
[1733978328595,2.53045165,3915.7,3914.5,1.78822]
[1733978328807,0.88309617,3915.6,3914.2,4.78833]
[1733978329026,1.55967837,3915.6,3914.3,1.7883]
[1733978329228,0.23503342,3915.6,3914.3,1.7883]
[1733978329636,0.55,3915.6,3914.3,1.7883]
[1733978331857,0.55,3915.6,3914.2,3.0]
[1733978332163,0.55,3915.6,3914.6,1.78816]
[1733978332511,0.55,3915.6,3914.3,2.45553039]
[1733978333141,2.55395,3915.5,3914.2,3.0]
[1733978333341,0.55,3915.1,3913.7,3.0]
[1733978333527,3.08045165,3915.1,3913.7,3.0]
[1733978333950,2.55434,3914.9,3913.7,3.0]
[1733978334115,0.55,3914.8,3913.7,3.0]
[1733978334611,0.55,3914.6,3913.3,2.44728]
[1733978334820,3.08045165,3914.6,3913.3,2.44728]
[1733978335363,5.63503165,3914.6,3913.3,2.44728]
[1733978335653,5.63503165,3914.6,3913.4,0.604288]
[1733978336548,0.55,3914.6,3913.3,3.0]
[1733978336772,1.06567365,3915.4,3912.7,0.7635]
[1733978336773,0.55,3914.0,3912.9,3.0]
[1733978336976,0.55,3914.0,3912.9,4.78893]
[1733978337277,2.55471,3914.4,3912.9,4.78893]
[1733978337278,0.55,3914.3,3913.1,1.78885]
[1733978337569,0.55,3914.3,3913.1,4.78885]
[1733978337866,0.55,3914.1,3912.4,2.83209998]
[1733978338079,0.55,3914.1,3912.8,1.78899]
[1733978338376,0.55,3914.1,3913.0,1.78889]
[1733978338731,0.55,3914.1,3912.9,0.178899]
[1733978339175,3.10489,3914.1,3912.9,0.178899]
[1733978339347,3.10489,3914.1,3912.9,3.178899]
[1733978339878,3.10489,3914.1,3912.9,4.967839]
[1733978340175,3.10489,3914.1,3913.0,0.7799939]
[1733978340961,2.55494,3914.0,3913.0,0.7799939]
[1733978341887,2.55501,3913.9,3913.0,0.7799939]
[1733978342586,0.04256826,3913.8,3913.0,0.7799939]
[1733978343133,0.04256826,3913.8,3912.9,3.178899]
[1733978343445,5.63532165,3914.1,3912.9,3.178899]
[1733978343651,0.04256048,3913.7,3912.9,3.178899]
[1733978343862,5.63532165,3914.1,3912.9,3.178899]
[1733978344068,0.0425527,3913.6,3912.9,3.0]
[1733978344272,5.63532165,3914.1,3912.9,3.0]
[1733978344785,0.04258381,3914.0,3912.9,3.0]
[1733978345139,0.55,3913.9,3912.9,3.0]
[1733978345335,2.55513,3913.7,3912.5,4.78912]
[1733978345570,2.55513,3913.7,3912.6,3.762122]
[1733978345768,0.0425527,3913.6,3912.6,3.762122]
[1733978347031,0.0425527,3913.6,3912.6,0.762122]
[1733978347595,0.0425527,3913.6,3912.6,2.551202]
[1733978350883,0.0425527,3913.6,3912.7,4.78901]
[1733978351066,0.0425527,3913.6,3912.8,3.8551132]
[1733978351641,0.0425527,3913.6,3912.5,4.78913]
[1733978351842,2.53045165,3913.8,3912.5,4.78913]
[1733978352041,0.0421421,3913.5,3912.5,4.78913]
[1733978352360,0.04213432,3913.4,3912.5,4.78913]
[1733978352564,2.55512,3913.7,3912.5,4.78913]
[1733978352770,0.04209297,3913.3,3912.6,0.762123]
[1733978352958,2.55512,3913.7,3912.6,0.762123]
[1733978353153,2.55512,3913.7,3912.1,0.97209028]
[1733978353154,0.04208519,3913.2,3912.1,0.20859028]
[1733978353356,2.5556,3913.0,3911.8,2.83209998]
[1733978353649,2.53045165,3913.1,3911.8,2.83209998]
[1733978353650,2.57252906,3913.1,3911.8,4.62153998]
[1733978353877,0.04207304,3912.9,3911.8,4.62153998]
[1733978354069,2.53045165,3913.1,3911.9,0.53704056]
[1733978354070,0.04189055,3913.0,3911.9,0.53704056]
[1733978354273,2.59760499,3912.8,3911.8,2.83209998]
[1733978354450,2.55573,3912.8,3911.8,2.83209998]
[1733978354650,0.04186721,3912.7,3911.6,0.625]
[1733978354885,0.04186721,3912.7,3911.6,3.625]
[1733978356770,2.59764721,3912.7,3911.6,3.625]
[1733978356972,2.59764721,3912.7,3911.7,0.9001807]
[1733978357524,0.04186721,3912.7,3911.7,0.9001807]
[1733978357689,2.55591,3912.5,3911.7,0.9001807]
[1733978358052,0.04151361,3912.4,3911.7,0.9001807]
[1733978358488,0.04151361,3912.4,3911.6,0.625]
[1733978362914,2.55576,3912.8,3911.6,0.625]
[1733978362915,2.55585,3912.6,3911.6,0.625]
[1733978363079,0.04092373,3912.3,3911.6,0.625]
[1733978363286,0.04093929,3912.5,3911.6,0.625]
[1733978363475,0.04091595,3912.2,3911.6,1.512176]
[1733978363675,2.55585,3912.6,3911.6,1.512176]
[1733978363898,0.04090816,3912.1,3911.6,1.512176]
[1733978364205,0.04090038,3912.0,3911.6,1.512176]
[1733978364381,2.53045165,3912.7,3911.6,1.512176]
[1733978364382,5.08624165,3912.7,3911.6,1.512176]
[1733978364589,0.04089259,3911.9,3911.7,0.9758856]
[1733978364793,5.08624165,3912.7,3911.7,0.9758856]
[1733978365023,5.08624165,3912.7,3911.6,3.625]
[1733978365198,0.04094708,3912.6,3911.6,3.625]
[1733978366195,0.04094708,3912.6,3912.0,1.78933]
[1733978366809,2.53045165,3913.1,3912.0,1.78933]
[1733978366992,0.0409225,3912.5,3912.0,1.78933]
[1733978367186,2.53045165,3913.1,3912.1,0.462143]
[1733978367412,0.04091472,3912.4,3912.1,0.462143]
[1733978367711,2.53045165,3913.1,3912.1,0.462143]
[1733978368089,0.04096141,3913.0,3912.1,0.462143]
[1733978368773,2.59654141,3913.0,3912.1,0.462143]
[1733978368978,2.59654141,3913.0,3911.8,4.78943]
[1733978369530,0.04096141,3913.0,3911.8,5.83209998]
[1733978369812,0.04096141,3913.0,3912.2,1.78926]
[1733978371092,0.04096141,3913.0,3911.8,5.83209998]
[1733978371292,0.04096141,3913.0,3912.0,1.78935]
[1733978371628,0.04096141,3913.0,3912.1,0.762145]
[1733978372101,0.04096141,3913.0,3912.1,3.762145]
[1733978372300,0.04096141,3913.0,3912.1,2.551455]
[1733978372728,0.55,3913.8,3912.1,2.551455]
[1733978373239,0.55,3913.6,3912.1,2.551455]
[1733978373382,0.55,3913.3,3912.1,2.551455]
[1733978373891,0.04122887,3913.2,3912.1,2.551455]
[1733978374481,0.04122887,3913.2,3912.1,0.762145]
[1733978374797,0.23464571,3913.8,3912.5,1.78913]
[1733978375102,0.04096359,3913.1,3912.5,1.78913]
[1733978375408,0.23464571,3913.8,3912.5,1.78913]
[1733978375409,2.78970571,3913.8,3912.5,1.78913]
[1733978375614,0.04107337,3913.0,3912.5,2.347473]
[1733978375791,0.23464571,3913.6,3912.5,2.347473]
[1733978376116,0.04106559,3912.9,3912.5,2.347473]
[1733978376323,2.53045165,3913.7,3912.5,2.347473]
[1733978376683,0.04111445,3913.6,3912.5,2.347473]
[1733978376894,0.04111445,3913.6,3912.5,0.558343]
[1733978377080,0.04111445,3913.6,3912.6,1.78905]
[1733978380052,0.04111445,3913.6,3912.4,1.78917]
[1733978380217,0.27567367,3913.6,3912.4,1.78917]
[1733978380521,0.04111445,3913.6,3912.5,1.78912]
[1733978381236,3.10525,3913.5,3912.1,4.78929]
[1733978381407,2.55532,3913.4,3912.1,4.78929]
[1733978381716,2.53045165,3913.3,3912.2,0.558359]
[1733978382232,0.04114491,3913.2,3912.2,0.558359]
[1733978382804,2.59659491,3913.2,3912.2,0.558359]
[1733978383131,2.59659491,3913.2,3911.9,4.7894]
[1733978383901,0.04114491,3913.2,3911.9,3.0]
[1733978384105,0.55,3912.9,3911.6,0.625]
[1733978384303,2.18394623,3912.8,3911.6,0.625]
[1733978384552,3.64872423,3912.7,3911.7,1.7895]
[1733978384702,2.53045165,3912.7,3911.6,0.625]
[1733978384904,0.04101987,3912.6,3911.6,0.625]
[1733978385757,0.04101987,3912.6,3911.6,2.797914]
[1733978387883,0.04101987,3912.6,3912.0,4.78933]
[1733978388029,0.04101987,3912.6,3911.9,0.7943]
[1733978388030,0.04101987,3912.6,3912.1,4.7893]
[1733978388223,2.53045165,3912.8,3912.1,4.7893]
[1733978388224,2.53045165,3912.8,3912.1,1.7893]
[1733978388458,0.04101209,3912.5,3912.2,0.55836]
[1733978388629,2.53045165,3912.8,3912.2,0.55836]
[1733978388971,0.04100431,3912.4,3912.2,0.55836]
[1733978389181,2.53045165,3913.3,3912.2,0.55836]
[1733978389682,0.04072322,3913.2,3912.2,0.55836]
[1733978389969,0.04072322,3913.2,3912.3,0.534766]
[1733978390641,0.04072322,3913.2,3912.3,2.323976]
[1733978390845,0.04072322,3913.2,3912.4,1.78916]
[1733978391030,0.04072322,3913.2,3912.5,1.78912]
[1733978393460,0.04072322,3913.2,3912.6,1.78906]
[1733978393659,2.53045165,3913.7,3912.7,1.283316]
[1733978393861,0.04092256,3913.1,3912.7,0.8212]
[1733978394047,2.53045165,3913.7,3912.7,0.8212]
[1733978394251,0.04091478,3913.0,3912.7,0.8212]
[1733978394487,2.53045165,3913.7,3912.7,0.8212]
[1733978394900,0.04096145,3913.6,3912.7,0.8212]
[1733978395226,0.04096145,3913.6,3912.7,1.365436]
[1733978395957,0.04096145,3913.6,3912.7,0.544236]
[1733978396196,0.04096145,3913.6,3912.5,3.0]
[1733978396406,0.04096145,3913.6,3912.5,4.78913]
[1733978399101,0.04096145,3913.6,3912.7,1.78904]
[1733978399499,2.53045165,3913.8,3912.7,1.78904]
[1733978399704,0.04132308,3913.5,3912.7,1.78904]
[1733978399921,0.04133864,3913.7,3912.8,0.478904]
[1733978400128,0.0413209,3913.4,3912.8,0.478904]
[1733978400418,2.53045165,3913.8,3912.8,0.478904]
[1733978400601,0.04131312,3913.3,3912.5,4.78912]
[1733978400790,2.53045165,3913.8,3912.5,4.78912]
[1733978401105,0.04130534,3913.2,3912.5,4.78912]
[1733978401405,0.04129756,3913.1,3912.5,4.78912]
[1733978401611,6.1511953,3913.8,3912.6,0.844242]
[1733978401916,0.04128978,3913.0,3912.5,4.78912]
[1733978402073,2.55519,3913.6,3912.5,3.0]
[1733978402267,0.04132118,3912.9,3912.5,3.0]
[1733978402495,2.55532,3913.4,3912.3,3.0]
[1733978402724,2.55532,3913.4,3912.4,0.57340734]
[1733978403138,0.0413523,3913.3,3912.4,0.57340734]
[1733978403500,5.08569165,3913.6,3912.4,0.57340734]
[1733978403701,0.04134452,3913.2,3912.4,0.57340734]
[1733978403922,2.5553,3913.5,3912.4,0.57340734]
[1733978404134,0.04133674,3913.1,3912.4,0.57340734]
[1733978404302,2.5553,3913.5,3912.3,3.0]
[1733978404303,2.5553,3913.5,3912.5,0.61838473]
[1733978404499,0.04132896,3913.0,3912.3,3.0]
[1733978404703,2.5553,3913.5,3912.3,3.0]
[1733978404940,0.04132118,3912.9,3912.3,3.0]
[1733978405140,2.5553,3913.5,3912.3,3.0]
[1733978405316,0.0413134,3912.8,3912.3,3.0]
[1733978405505,2.5553,3913.5,3912.4,0.561044]
[1733978405909,0.04136008,3913.4,3912.4,0.561044]
[1733978406652,2.59669008,3913.4,3912.4,0.561044]
[1733978406855,0.04136008,3913.4,3912.1,4.53369]
[1733978407148,0.04136008,3913.4,3912.6,0.7594]
[1733978407316,0.04136008,3913.4,3913.3,2.29263]
[1733978407520,1.06567365,3914.4,3913.8,1.53302]
[1733978407722,1.06567365,3914.8,3914.2,1.33229988]
[1733978407927,0.03853047,3914.3,3914.2,1.33229988]
[1733978408141,5.08466165,3915.1,3914.2,1.33229988]
[1733978408142,6.1503353,3915.1,3914.2,1.33229988]
[1733978408338,0.03853047,3914.3,3914.2,1.33229988]
[1733978408539,2.53045165,3915.1,3914.2,1.33229988]
[1733978408875,3.61983365,3915.2,3913.2,1.33229988]
[1733978408876,2.55493,3914.0,3913.2,1.33229988]
[1733978409216,2.59349936,3913.9,3912.9,0.7594]
[1733978409461,2.55528,3913.5,3912.6,1.06923861]
[1733978409668,2.5554,3913.3,3912.3,1.06923861]
[1733978410133,0.03844492,3913.2,3912.3,1.06923861]
[1733978410363,0.03844492,3913.2,3912.4,0.6263329]
[1733978412872,2.55552,3913.1,3912.2,3.90028261]
[1733978413069,2.59395714,3913.1,3912.2,2.831044]
[1733978413797,2.59395714,3913.1,3912.1,1.06923861]
[1733978414170,2.55566,3912.9,3912.1,1.06923861]
[1733978414597,0.03832983,3912.8,3912.1,1.06923861]
[1733978414785,0.03832983,3912.8,3912.1,1.99557151]
[1733978414988,0.03832983,3912.8,3912.1,0.9263329]
[1733978415218,0.03832983,3912.8,3911.6,4.67701953]
[1733978415219,0.03832983,3912.8,3911.9,4.06923861]
[1733978415528,1.06567365,3913.0,3911.6,5.07762261]
[1733978415690,4.09183751,3913.1,3911.6,5.07762261]
[1733978415691,0.03832205,3912.7,3911.6,1.008384]
[1733978415869,1.32654659,3912.8,3911.6,1.008384]
[1733978416217,0.03831427,3912.6,3911.6,1.008384]
[1733978416423,2.59415205,3912.7,3911.6,1.008384]
[1733978416572,0.03830649,3912.5,3911.6,1.008384]
[1733978416772,0.03831427,3912.6,3911.6,1.008384]
[1733978416995,0.03829871,3912.4,3911.6,1.008384]
[1733978417231,0.03829871,3912.4,3911.7,0.80198414]
[1733978417369,2.55583,3912.7,3911.7,0.80198414]
[1733978417571,0.03829092,3912.3,3911.6,1.008384]
[1733978417838,2.55586,3912.6,3911.6,0.625]
[1733978418000,1.06567365,3912.8,3911.6,0.625]
[1733978418001,0.03828314,3912.2,3911.6,0.625]
[1733978418410,2.55583,3912.7,3911.6,0.625]
[1733978418739,2.55583,3912.7,3911.6,1.59342526]
[1733978418901,1.60040381,3913.0,3911.6,1.59342526]
[1733978418902,0.03764809,3912.6,3911.6,1.59342526]
[1733978419228,2.55562,3913.0,3911.8,0.8233]
[1733978419431,0.03764591,3912.5,3911.9,0.50198139]
[1733978419611,2.53045165,3913.1,3911.9,0.50198139]
[1733978419929,0.03763813,3912.4,3911.9,0.50198139]
[1733978420239,2.53045165,3913.1,3911.9,2.03574139]
[1733978420832,0.03780239,3913.0,3912.1,1.53368]
[1733978420996,0.03780239,3913.0,3912.2,0.20356614]
[1733978421528,0.03780239,3913.0,3912.3,1.53362]
[1733978421726,0.03780239,3913.0,3912.4,0.8233]
[1733978422516,0.03780239,3913.0,3912.3,1.53362]
[1733978422718,0.03780239,3913.0,3912.4,1.53358]
[1733978422923,0.03780239,3913.0,3912.3,0.25394861]
[1733978423938,5.08574165,3913.5,3912.3,0.25394861]
[1733978424160,0.03779461,3912.9,3912.3,0.25394861]
[1733978424459,5.08574165,3913.5,3912.3,0.25394861]
[1733978424755,0.03778683,3912.8,3912.2,4.73721614]
[1733978424960,5.08574165,3913.5,3912.2,4.73721614]
[1733978425121,0.03777905,3912.7,3912.2,4.73721614]
[1733978425325,5.08574165,3913.5,3912.2,4.73721614]
[1733978425554,0.03777127,3912.6,3912.2,4.73721614]
[1733978425762,5.08574165,3913.5,3912.3,0.66087548]
[1733978425911,5.08574165,3913.5,3912.3,2.19448548]
[1733978425912,0.8839819,3913.4,3912.3,2.19448548]
[1733978426113,0.03783351,3913.4,3912.3,2.19448548]
[1733978427779,0.03783351,3913.4,3912.3,0.66087548]
[1733978427965,0.03783351,3913.4,3912.2,0.20356614]
[1733978428268,3.91912745,3913.4,3912.1,2.336]
[1733978428448,0.88401311,3913.3,3912.1,2.336]
[1733978428659,2.59316351,3913.4,3912.1,2.336]
[1733978428966,0.03799708,3913.2,3912.1,2.336]
[1733978429117,0.03800486,3913.3,3912.1,2.336]
[1733978429819,2.56845651,3913.3,3912.1,2.336]
[1733978431835,5.12385651,3913.3,3912.1,2.336]
[1733978432035,2.55547,3913.2,3912.1,0.8023]
[1733978432236,2.55547,3913.2,3912.1,1.7761344]
[1733978432438,0.06464254,3913.1,3912.1,1.7761344]
[1733978432647,0.06464254,3913.1,3912.1,4.7761344]
[1733978433632,0.06464254,3913.1,3911.9,0.50198139]
[1733978433633,2.55565,3912.9,3911.9,0.50198139]
[1733978433978,0.06462122,3912.8,3911.9,0.50198139]
[1733978434325,2.55572,3912.8,3911.8,1.06923861]
[1733978434524,0.06461411,3912.7,3911.9,1.53378]
[1733978434724,1.32659774,3913.2,3911.9,4.53378]
[1733978434972,0.064607,3912.6,3911.9,4.53378]
[1733978435258,2.55552,3913.1,3912.0,0.8008965]
[1733978435447,0.06463543,3913.0,3911.9,4.53378]
[1733978435655,2.59508708,3913.0,3911.9,4.53378]
[1733978436228,2.59508708,3913.0,3911.9,3.0]
[1733978436587,2.59508708,3913.0,3911.9,5.60298861]
[1733978436786,2.59508708,3913.0,3911.9,4.53375]
[1733978436988,2.59508708,3913.0,3912.0,0.69396964]
[1733978438590,0.06463543,3913.0,3912.0,0.69396964]
[1733978440485,0.23562187,3912.9,3911.7,1.87153861]
[1733978440661,0.06454436,3912.9,3911.8,3.0]
[1733978440856,2.62019436,3912.9,3911.8,3.0]
[1733978441695,0.23556232,3912.8,3911.8,3.0]
[1733978441997,1.11998203,3912.7,3911.6,1.95817325]
[1733978442155,0.23560258,3912.6,3911.6,4.95817325]
[1733978442493,0.06437747,3912.6,3911.6,4.95817325]
[1733978443272,0.06437747,3912.6,3911.6,5.47323979]
[1733978444663,2.53045165,3912.5,3911.6,1.95817325]
[1733978444900,0.06415611,3912.4,3911.6,4.95817325]
[1733978446978,0.06415611,3912.4,3911.6,0.625]
[1733978447180,2.55608,3912.3,3911.6,0.625]
[1733978447484,0.06414749,3912.2,3911.6,0.625]
[1733978448769,2.62026749,3912.2,3911.6,0.625]
[1733978448975,0.06414749,3912.2,3911.6,0.625]
[1733978450527,2.59459914,3912.2,3911.6,0.625]
[1733978451818,2.59459914,3912.2,3911.7,1.53385]
[1733978452268,0.06414749,3912.2,3911.8,2.86698325]
[1733978452473,3.5961253,3913.1,3911.9,0.34919833]
[1733978452474,2.79095998,3913.0,3911.9,0.34919833]
[1733978452709,0.29907452,3912.9,3911.8,2.86698325]
[1733978452872,0.29907452,3912.9,3911.6,0.625]
[1733978453075,1.11912744,3912.8,3911.6,0.625]
[1733978453289,0.06369032,3912.7,3911.7,1.53384]
[1733978453471,0.23535085,3912.9,3911.7,1.53384]
[1733978453784,0.29912667,3912.8,3911.7,1.53384]